[Event "1st FIDE Olympiad DIS 2023"]
[Site "Belgrade"]
[Date "2023.02.02"]
[Round "4.23"]
[White "Donmez, Unal"]
[Black "Johansen, Torbjorn Reidar"]
[Result "1-0"]
[ECO "B54"]
[WhiteElo "1816"]
[BlackElo "1764"]
[Annotator "NA RC COMBH"]
[PlyCount "49"]
[EventDate "2023.01.30"]
[EventType "team-tourn"]
[EventCountry "SRB"]
[SourceTitle "playchess.com"]
[Source "ChessBase"]
[SourceQuality "1"]
[WhiteTeam "Turkey"]
[BlackTeam "Norway"]
[WhiteTeamCountry "TUR"]
[BlackTeamCountry "NOR"]
[TimeControl "40/5400+30:1800+30"]

{[%evp 14,48,60,32767,32767,32767,32767,54,32767,32767,81,49,79,56,61,55,87,15,512,32767,32767,32767,32767,32767,32767,32767,775,32767,32767,847,815,914,922,32767,32767,32767,1037]} 1. e4 {[%emt 0:00:10]} c5 {[%emt 0:00:08]} 2. Nf3 {[%emt 0:00:29]} Nc6 {[%emt 0:01:55]} 3. d4 {[%emt 0:00:19]} cxd4 {[%emt 0:00:06]} 4. Nxd4 {[%emt 0:00:10]} d6 {[%emt 0:00:31]} 5. c4 {[%emt 0:01:04]} Nf6 {[%emt 0:01:57]} 6. Nc3 {[%emt 0:00:18]} e6 {[%emt 0:00:37]} 7. Be2 {[%emt 0:01:35]} Be7 {[%emt 0:00:39]} 8. O-O {[%emt 0:00:54]} O-O {[%emt 0:00:06]} 9. Be3 {[%emt 0:00:46]} a6 {[%emt 0:01:49]} 10. Qd2 {[%emt 0:02:43]} Qc7 {[%emt 0:01:59]} 11. Rac1 {[%emt 0:00:36]} Rd8 {[%emt 0:02:53]} 12. f3 {[%emt 0:05:29]} d5 {[%emt 0:06:06]} 13. Nxc6 {[%emt 0:03:25]} bxc6 {[%emt 0:00:16]} 14. cxd5 {[%emt 0:00:18]} exd5 {[%emt 0:00:16]} 15. exd5 {[%emt 0:00:28]} ({White should try} 15. Nxd5 $16 Nxd5 16. exd5) 15... Nxd5 $2 {[%emt 0:00:17]} (15... Be6 $11 {and Black stays safe.}) 16. Nxd5 {[%emt 0:00:28]} Rxd5 {[%emt 0:00:44]} 17. Qxd5 {[%emt 0:00:45]} cxd5 {[%emt 0:00:09]} 18. Rxc7 {[%emt 0:00:15]} Bf6 {[%emt 0:01:47]} 19. Rfc1 {[%emt 0:02:31]} Be6 {[%emt 0:00:14]} 20. b4 {[%emt 0:00:43]} h6 {[%emt 0:02:11]} 21. Kf1 {[%emt 0:03:00]} Rb8 {[%emt 0:10:37]} 22. Bd3 $18 {[%emt 0:07:09]} d4 {[%emt 0:02:47]} 23. Bf4 {[%emt 0:01:27]} g5 {[%emt 0:00:06]} 24. Bd6 {[%emt 0:00:49]} Kg7 {[%emt 1:04:20]} 25. Rxf7+ {[%emt 0:03:08]} 1-0

[Event "1st FIDE Olympiad DIS 2023"]
[Site "Belgrade"]
[Date "2023.02.02"]
[Round "4.24"]
[White "Gomez Fernandez, Alfredo"]
[Black "Saltik, Suleyman"]
[Result "0-1"]
[ECO "C90"]
[WhiteElo "1760"]
[BlackElo "1687"]
[Annotator "NA RC COMBH"]
[PlyCount "134"]
[EventDate "2023.01.30"]
[EventType "team-tourn"]
[EventCountry "SRB"]
[SourceTitle "playchess.com"]
[Source "ChessBase"]
[SourceQuality "1"]
[WhiteTeam "Spain"]
[BlackTeam "Turkey"]
[WhiteTeamCountry "ESP"]
[BlackTeamCountry "TUR"]
[TimeControl "40/5400+30:1800+30"]

1. e4 {[%emt 0:00:03]} e5 {[%emt 0:00:08]} 2. Nf3 {[%emt 0:00:13]} Nc6 {[%emt 0:00:10]} 3. Bb5 {[%emt 0:00:19]} a6 {[%emt 0:01:09]} 4. Ba4 {[%emt 0:00:13]} Nf6 {[%emt 0:02:55]} 5. O-O {[%emt 0:00:41]} b5 {[%emt 0:00:38]} 6. Bb3 {[%emt 0:00:30]} d6 {[%emt 0:03:10]} 7. Re1 {[%emt 0:09:52]} Bg4 {[%emt 0:05:27]} 8. c3 {[%emt 0:06:33]} Be7 {[%emt 0:01:15]} 9. d3 {[%emt 0:08:14]} Na5 {[%emt 0:02:44]} 10. Bc2 {[%emt 0:00:24]} c5 {[%emt 0:00:42]} 11. Nbd2 {[%emt 0:04:47]} O-O {[%emt 0:02:08]} 12. Nf1 {[%emt 0:04:20]} Nc6 {[%emt 0:05:11]} 13. Ne3 {[%emt 0:06:57]} Be6 {[%emt 0:02:31]} 14. Ng5 {[%emt 0:15:02]} Bd7 {[%emt 0:01:48]} 15. Nf3 {[%emt 0:01:47]} Qc7 {[%emt 0:09:29]} 16. Bb3 {[%emt 0:09:30]} Na5 {[%emt 0:01:43]} 17. Nd5 {[%emt 0:02:31]} Nxd5 {[%emt 0:01:38]} 18. Bxd5 {[%emt 0:00:05]} Rab8 {[%emt 0:05:14]} 19. Be3 {[%emt 0:06:30]} b4 {[%emt 0:07:32]} 20. Bg5 {[%emt 0:11:54]} Bg4 {[%emt 0:06:45]} 21. Bd2 {[%emt 0:01:24]} Nc6 {[%emt 0:02:59]} 22. h3 {[%emt 0:01:07]} Bh5 {[%emt 0:00:39]} 23. g4 {[%emt 0:01:47]} Bg6 {[%emt 0:00:09]} 24. Rc1 {[%emt 0:01:23]} bxc3 {[%emt 0:03:25]} 25. bxc3 {[%emt 0:01:57]} Rb6 {[%emt 0:08:34]} 26. d4 {[%emt 0:01:18]} Rfb8 {[%emt 0:01:34]} 27. h4 {[%emt 0:02:44]} h5 {[%emt 0:00:05]} 28. g5 {[%emt 0:00:13]} a5 {[%emt 0:05:09]} 29. a3 {[%emt 0:00:45]} Na7 {[%emt 0:02:33]} 30. a4 {[%emt 0:01:10]} Rb2 {[%emt 0:00:24]} 31. Rc2 {[%emt 0:00:44]} Qd7 {[%emt 0:02:48]} 32. Rxb2 {[%emt 0:00:07]} Rxb2 {[%emt 0:00:46]} 33. Kf1 {[%emt 0:00:23]} Qh3+ {[%emt 0:01:19]} 34. Kg1 {[%emt 0:00:11]} cxd4 {[%emt 0:01:41]} 35. cxd4 {[%emt 0:00:09]} Qg4+ {[%emt 0:02:01]} 36. Kf1 {[%emt 0:00:09]} Rxd2 {[%emt 0:03:56]} 37. Qxd2 {[%emt 0:00:53]} Qxf3 {[%emt 0:00:23]} 38. Qxa5 {[%emt 0:01:49]} Qd3+ {[%emt 0:01:16]} 39. Kg2 {[%emt 0:00:26]} Qxd4 {[%emt 0:00:51]} 40. Qc7 {[%emt 0:00:14]} Bf8 {[%emt 0:03:07]} 41. a5 {[%emt 0:30:27]} Nb5 {[%emt 0:07:28]} 42. Qc4 {[%emt 0:00:00]} Qd2 {[%emt 0:04:01]} 43. Re2 {[%emt 0:00:00]} Qxa5 {[%emt 0:04:07]} 44. Ra2 {[%emt 0:00:00]} Qb6 {[%emt 0:00:24]} 45. Rb2 {[%emt 0:00:00]} Qd4 {[%emt 0:00:29]} 46. Qxb5 {[%emt 0:00:00]} Bxe4+ {[%emt 0:00:21]} 47. Bxe4 {[%emt 0:00:00]} Qxe4+ {[%emt 0:00:07]} 48. f3 {[%emt 0:00:00]} Qxh4 {[%emt 0:00:22]} 49. Qe8 {[%emt 0:00:00]} Qxg5+ {[%emt 0:00:18]} 50. Kf2 {[%emt 0:00:00]} Qe7 {[%emt 0:02:30]} 51. Qc8 {[%emt 0:00:00]} Kh7 {[%emt 0:01:36]} 52. Rb7 {[%emt 0:00:00]} Qh4+ {[%emt 0:00:26]} 53. Kg2 {[%emt 0:00:00]} Qg5+ {[%emt 0:00:27]} 54. Kf1 {[%emt 0:00:00]} Be7 {[%emt 0:00:26]} 55. Qc7 {[%emt 0:00:00]} Bf6 {[%emt 0:01:14]} 56. Qxf7 {[%emt 0:00:00]} Qc1+ {[%emt 0:00:38]} 57. Kg2 {[%emt 0:00:00]} Qc2+ {[%emt 0:00:38]} 58. Kf1 {[%emt 0:00:00]} Qd3+ {[%emt 0:00:32]} 59. Kf2 {[%emt 0:00:03]} Qf5 {[%emt 0:00:15]} 60. Ke2 {[%emt 0:00:18]} h4 {[%emt 0:00:30]} 61. Rb8 {[%emt 0:00:29]} h3 {[%emt 0:01:22]} 62. Qg8+ {[%emt 0:00:29]} Kg6 {[%emt 0:00:28]} 63. Qe8+ {[%emt 0:02:03]} Kg5 {[%emt 0:00:12]} 64. Qh8 {[%emt 0:02:35]} Qc2+ {[%emt 0:00:15]} 65. Ke3 {[%emt 0:00:50]} d5 {[%emt 0:00:44]} 66. f4+ {[%emt 0:00:14]} exf4+ {[%emt 0:00:09]} 67. Kf3 {[%emt 0:00:01]} Qg2# {[%emt 0:00:47]} 0-1

[Event "1st FIDE Olympiad DIS 2023"]
[Site "Belgrade"]
[Date "2023.02.02"]
[Round "4.25"]
[White "Bursuc, Mihai"]
[Black "Nikac, Predrag"]
[Result "0-1"]
[ECO "B31"]
[WhiteElo "1823"]
[BlackElo "2285"]
[Annotator "TA"]
[PlyCount "66"]
[EventDate "2023.01.30"]
[EventType "team-tourn"]
[EventCountry "SRB"]
[SourceTitle "playchess.com"]
[Source "ChessBase"]
[SourceQuality "1"]
[WhiteTeam "Romania"]
[BlackTeam "Montenegro"]
[WhiteTeamCountry "ROU"]
[BlackTeamCountry "MNE"]
[TimeControl "40/5400+30:1800+30"]

{[%evp 12,66,18,-12,-8,-4,7,12,0,0,0,8,0,12,15,-14,-33,-29,0,-23,0,-10,-12,-53,0,-29,-7,-17,16,0,0,-53,-17,-20,-20,-17,-19,-25,6,3,0,0,7,-3,-8,-5,-4,-28,-25,-48,-52,-61,-7,-88,-78,-330,-318]} 1. e4 {[%emt 0:00:51]} c5 {[%emt 0:00:23]} 2. Nf3 {[%emt 0:00:17]} Nc6 {[%emt 0:00:08]} 3. Bb5 {[%emt 0:00:09]} g6 {[%emt 0:00:22]} 4. Bxc6 {[%emt 0:01:12]} bxc6 {[%emt 0:00:39]} 5. O-O {[%emt 0:01:07]} Bg7 {[%emt 0:00:09]} 6. d3 {[%emt 0:00:11]} d6 {[%emt 0:01:29]} 7. h3 {[%emt 0:00:40][%cal Oe4e5]} e5 {[%emt 0:04:26] B31: Sicilian: 2...Nc6 3 Bb5 g6.} 8. c3 {[%emt 0:00:28]} Ne7 {[%emt 0:00:58]} 9. d4 {[%emt 0:00:53]} cxd4 {[%emt 0:04:05] The position is equal.} 10. cxd4 {[%emt 0:00:12]} exd4 {[%emt 0:03:56]} 11. Nxd4 {[%emt 0:00:38] [#]} d5 $146 {[%emt 0:02:35]} ({Predecessor:} 11... O-O 12. Nc3 h6 13. Be3 Kh7 14. Qd2 Rb8 15. b3 c5 16. Nde2 Ba6 17. Rac1 f5 {1-0 Tomashevsky,E (2716)-Li,C (2720) Wch Blitz Doha 2016 (18)}) 12. exd5 {[%emt 0:02:34]} Qxd5 {[%emt 0:08:31]} 13. Ne2 {[%emt 0:06:01]} O-O {[%emt 0:04:11]} 14. Nbc3 {[%emt 0:01:07]} Qa5 {[%emt 0:01:27]} 15. Bd2 {[%emt 0:03:48]} Rd8 {[%emt 0:04:27]} 16. Qc1 {[%emt 0:00:25]} Nf5 {[%emt 0:01:38]} 17. Ne4 {[%emt 0:04:36]} Qe5 {[%emt 0:06:30]} (17... Qd5 $1 $15 18. f3 Ba6) 18. N4c3 {[%emt 0:03:51]} Ba6 {[%emt 0:04:16] A strong pair of Bishops.} 19. Re1 {[%emt 0:00:15]} Rd7 {[%emt 0:04:54]} (19... Qc5 {keeps more tension.} 20. Bf4 Bd3 21. Qd2 Bb5) 20. Bf4 {[%emt 0:03:26]} (20. Ng3 $5 {[%cal Re1e5]} Qc5 21. Nxf5 Qxf5 22. Nd1 $11) 20... Qa5 {[%emt 0:05:53]} 21. Rd1 {[%emt 0:04:19]} (21. Ng3 $11) 21... Rad8 {[%emt 0:00:01][%cal Ba8d8,Bd8d7,Bd7e7,Be7e1][%mdl 32] [#] aiming for ...Rxd1+.} 22. Rxd7 {[%emt 0:00:04]} Rxd7 {[%emt 0:00:18]} 23. Ng3 $1 {[%emt 0:01:44]} Nxg3 {[%emt 0:03:06]} 24. Bxg3 {[%emt 0:00:28]} Qb4 {[%emt 0:03:17]} 25. Qe3 {[%emt 0:05:14] Hoping for Qe8+.} Re7 {[%emt 0:01:21] Inhibits Qe8+.} (25... Qxb2 $2 26. Rb1 Bxc3 27. Rxb2 Rd1+ 28. Kh2 Bxb2 29. Qe8+ Kg7 30. Qxc6 $18) (25... Qe7 {simplifies} 26. Qxe7 Rxe7 27. Rd1 f5) 26. Qd2 {[%emt 0:00:27] And now Qd8+ would win.} Qd4 {[%emt 0:05:14] Prevents Qd8+} 27. Qxd4 {[%emt 0:00:33]} Bxd4 {[%emt 0:00:03]} 28. Rd1 {[%emt 0:00:24]} c5 {[%emt 0:00:54]} 29. Rd2 {[%emt 0:05:47]} f5 {[%emt 0:03:07]} 30. Nd5 {[%emt 0:02:05]} Re1+ {[%emt 0:00:33]} 31. Kh2 {[%emt 0:00:14]} Bc4 {[%emt 0:02:01]} ({Black should try} 31... Re2 $15 32. Rxe2 Bxe2) 32. Nc3 {[%emt 0:00:34] [#]} (32. Ne3 $1 $11 {remains equal.} Bxe3 33. fxe3 Rxe3 34. Bf2) 32... g5 $1 $17 {[%emt 0:00:44] ...f4 is the strong threat. Black has more active pieces.} 33. f4 $2 {[%emt 0:00:27][%mdl 8192]} (33. Bd6 $17 {keeps fighting.}) 33... Rf1 {[%emt 0:00:41] Weighted Error Value: White=0.29 (precise) /Black=0.14 (very precise)} 0-1

[Event "1st FIDE Olympiad DIS 2023"]
[Site "Belgrade"]
[Date "2023.02.02"]
[Round "4.26"]
[White "Ivanovic, Milan"]
[Black "Pribeanu, Mihail-Dacian"]
[Result "1/2-1/2"]
[ECO "B18"]
[WhiteElo "1908"]
[BlackElo "2134"]
[Annotator "TA"]
[PlyCount "34"]
[EventDate "2023.01.30"]
[EventType "team-tourn"]
[EventCountry "SRB"]
[SourceTitle "playchess.com"]
[Source "ChessBase"]
[SourceQuality "1"]
[WhiteTeam "Montenegro"]
[BlackTeam "Romania"]
[WhiteTeamCountry "MNE"]
[BlackTeamCountry "ROU"]
[TimeControl "40/5400+30:1800+30"]

{[%evp 18,34,38,0,20,25,19,0,0,-36,-35,-30,-32,-34,-24,-26,-24,-25,0]} 1. e4 {[%emt 1:31:00]} c6 {[%emt 0:01:43]} 2. d4 {[%emt 0:00:00]} d5 {[%emt 0:00:20]} 3. Nc3 {[%emt 0:00:00][%cal Bb1c3,Bc3e4,Be4g3][%mdl 32]} dxe4 {[%emt 0:00:00]} 4. Nxe4 Bf5 {[%emt 0:00:44]} 5. Ng3 {[%emt 0:00:00]} Bg6 {[%emt 0:00:16]} 6. Nf3 {[%emt 0:00:00]} Nd7 {[%emt 0:00:27]} 7. Bd3 {[%emt 0:00:00]} e6 {[%emt 0:01:08]} 8. O-O {[%emt 0:00:00]} Ngf6 {[%emt 0:00:49]} 9. Re1 {[%emt 0:00:00]} Be7 {[%emt 0:01:19]} 10. c3 {[%emt 0:00:00]} c5 {[%emt 0:02:34] B18: Classical Caro-Kann: 4...Bf5 sidelines.} 11. Bxg6 {[%emt 0:00:00]} hxg6 {[%emt 0:03:04] [#]} 12. Qb3 $146 {[%emt 0:00:00]} ({Predecessor:} 12. Qd3 cxd4 13. Nxd4 Nc5 14. Qe2 O-O 15. Bg5 Qb6 16. Rad1 Rad8 17. h4 Rd5 18. Bxf6 Bxf6 {0-1 Alexakis,D (2194)-Nikolaidis,I (2512) Glyfada op 2nd 2000 (4)}) 12... Qc7 {[%emt 0:01:36] The position is equal.} 13. Ne5 {[%emt 0:00:00]} Nxe5 {[%emt 0:02:33]} 14. dxe5 {[%emt 0:00:00]} Nd7 {[%emt 0:00:55]} 15. f4 {[%emt 0:00:00]} c4 {[%emt 0:02:38]} 16. Qa4 $1 {[%emt 0:00:00]} ({Much weaker is} 16. Qb5 a6 17. Qa4 O-O-O $17) 16... O-O-O {[%emt 0:04:39] White must now prevent ...Bc5+.} 17. Be3 {[%emt 0:00:00]} Bc5 {[%emt 0:11:33] Weighted Error Value: White=0.12 (very precise) /Black=0.05 (flawless)} 1/2-1/2

[Event "1st FIDE Olympiad DIS 2023"]
[Site "Belgrade"]
[Date "2023.02.02"]
[Round "4.27"]
[White "Morariu, Ionel"]
[Black "Damjanovic, Radovan"]
[Result "1-0"]
[ECO "B90"]
[WhiteElo "1915"]
[BlackElo "1807"]
[Annotator "TA"]
[PlyCount "45"]
[EventDate "2023.01.30"]
[EventType "team-tourn"]
[EventCountry "SRB"]
[SourceTitle "playchess.com"]
[Source "ChessBase"]
[SourceQuality "1"]
[WhiteTeam "Romania"]
[BlackTeam "Montenegro"]
[WhiteTeamCountry "ROU"]
[BlackTeamCountry "MNE"]
[TimeControl "40/5400+30:1800+30"]

{[%evp 14,45,20,22,31,20,36,31,37,38,38,0,3,0,48,17,25,23,32,16,24,18,27,35,47,48,93,82,45,49,75,24,245,241]} 1. e4 {[%emt 0:01:23]} c5 {[%emt 0:00:03]} 2. Nf3 {[%emt 0:00:00]} d6 3. d4 {[%emt 0:00:26]} cxd4 {[%emt 0:00:47]} 4. Nxd4 {[%emt 0:00:00]} Nf6 {[%emt 0:00:44]} 5. Be2 {[%emt 0:01:50]} a6 {[%emt 0:02:46]} 6. Nc3 {[%emt 0:00:47]} Nc6 7. Be3 {[%emt 0:00:00]} e5 {[%emt 0:03:28]} 8. Nb3 {[%emt 0:00:00]} Be6 {[%emt 0:00:00] B90: Sicilian Najdorf: Unusual White 6th moves, 6 Be3 Ng4 and 6 Be3 e5.} 9. O-O {[%emt 0:01:36]} Be7 {[%emt 0:03:07]} 10. Nd5 $1 Bxd5 {[%emt 0:06:44] White is slightly better.} ({Don't do} 10... Nxe4 11. Bb6 Qc8 12. Nc7+ Kf8 13. Nxa8 Qxa8 14. f4 $16) 11. exd5 {[%emt 0:00:51]} Nb8 {[%emt 0:00:00][%cal Bc6b8,Bb8d7,Bd7e5][%mdl 32]} 12. f4 {[%emt 0:01:26]} Nbd7 {[%emt 0:01:08]} 13. c4 {[%emt 0:04:27] [#]} Qc7 $146 {[%emt 0:04:00]} (13... exf4 $11 14. Bxf4 (14. Rxf4 O-O $14) 14... O-O) ({Predecessor:} 13... b6 14. fxe5 Nxe5 15. Nd4 O-O 16. Nf5 Re8 17. Nxe7+ Qxe7 18. Bg5 Ned7 19. Bd3 h6 {1-0 Yogesh,G (2092)-Tan,W (1849) Penang op-A 5th 2013 (7)}) 14. Nd2 {[%emt 0:00:07][%cal Bb3d2,Bd2e4,Be4g3,Bg3f5,Bf5h6][%mdl 32]} O-O {[%emt 0:00:48]} 15. Rc1 {[%emt 0:01:59]} Rfe8 {[%emt 0:03:41]} 16. fxe5 {[%emt 0:02:16]} Nxe5 {[%emt 0:02:50]} 17. Bd4 {[%emt 0:02:10]} Nfd7 {[%emt 0:03:57]} 18. Ne4 {[%emt 0:01:18]} Nf6 {[%emt 0:01:56]} 19. Ng3 {[%emt 0:04:00]} Rac8 {[%emt 0:02:17]} 20. Nf5 {[%emt 0:00:38]} Bf8 {[%emt 0:13:47]} 21. Qd2 {[%emt 0:09:57][%cal Of5h6]} Qd8 {[%emt 0:04:43]} 22. Qg5 {White has more active pieces.} ({Better is} 22. b4 $16) 22... Ne4 $2 {[%emt 0:19:27] [#]} (22... Nfd7 $11 23. Qd2 g6) 23. Nh6+ {[%emt 0:01:11] Weighted Error Value: White=0.10 (very precise) /Black=0.35} 1-0

[Event "1st FIDE Olympiad DIS 2023"]
[Site "Belgrade"]
[Date "2023.02.02"]
[Round "4.28"]
[White "Lacmanovic, Radenko"]
[Black "Dima, Mihai"]
[Result "0-1"]
[ECO "B33"]
[WhiteElo "1349"]
[BlackElo "1948"]
[Annotator "TA"]
[PlyCount "44"]
[EventDate "2023.01.30"]
[EventType "team-tourn"]
[EventCountry "SRB"]
[SourceTitle "playchess.com"]
[Source "ChessBase"]
[SourceQuality "1"]
[WhiteTeam "Montenegro"]
[BlackTeam "Romania"]
[WhiteTeamCountry "MNE"]
[BlackTeamCountry "ROU"]
[TimeControl "40/5400+30:1800+30"]

{[%evp 16,44,-59,-268,-266,-368,-375,-372,-364,-396,-383,-378,-386,-379,-380,-392,-390,-391,-375,-381,-380,-379,-376,-375,-335,-354,-340,-319,-305,-5086,-5085]} 1. e4 {[%emt 0:00:45]} c5 {[%emt 0:00:11]} 2. Nf3 Nc6 {[%emt 0:00:01]} 3. d4 {[%emt 0:00:47]} cxd4 {[%emt 0:00:38]} 4. Nxd4 {[%emt 0:00:00]} Nf6 {[%emt 0:00:02]} 5. Nc3 {[%emt 0:00:28]} e5 {[%emt 0:00:09]} 6. Nf3 {[%emt 0:01:33]} Bb4 {[%emt 0:00:11]} 7. Bd2 {[%emt 0:00:12]} Bxc3 8. Bxc3 {[%emt 0:02:51]} Nxe4 {[%emt 0:01:01]} 9. Bxe5 $2 {[%emt 0:00:00] [#]} ({Better is} 9. Nxe5 $15 Nxc3 10. Nxc6) 9... Nxe5 $19 {[%emt 0:00:16] B33: Sicilian: Pelikan and Sveshnikov Variations.} ({Stronger than} 9... Qb6 10. Qe2 (10. Bxg7 $2 Qxf2#) 10... d5 11. Bxg7 $11) 10. Nxe5 {[%emt 0:00:07]} Qa5+ {[%emt 0:00:08]} 11. c3 {[%emt 0:03:04]} Qxe5 {[%emt 0:00:22] Black is winning.} 12. Qe2 {[%emt 0:00:47]} Qe6 {[%emt 0:00:19]} 13. g3 {[%emt 0:07:55] [#]} d5 $146 {[%emt 0:01:23]} ({Predecessor:} 13... Nf6 14. Rd1 Qxe2+ 15. Bxe2 d5 16. Bf3 Be6 17. a3 O-O 18. O-O h6 19. Rd4 Rfd8 20. Rfd1 Rd7 {0-1 Nunes,M (1551)-Xavier,M (1789) BRA-ch U14 Juiz de Fora 2021 (2)}) 14. Bg2 {[%emt 0:01:27]} Nf6 {[%emt 0:00:13]} 15. Qxe6+ {[%emt 0:01:41]} Bxe6 {[%emt 0:00:05][%cal Bc8e6,Be6g4,Bg4f3][%mdl 32]} (15... fxe6 $2 {too greedy.} 16. O-O-O $19) 16. O-O {[%emt 0:04:48]} O-O {[%emt 0:00:20]} 17. Rfe1 Rad8 {[%emt 0:03:42]} 18. Rad1 {[%emt 0:04:44]} Bg4 {[%emt 0:00:00]} 19. Rd4 {[%emt 0:01:47]} Rfe8 {[%emt 0:00:00]} 20. Rxe8+ {[%emt 0:03:11]} Rxe8 {[%emt 0:00:00]} 21. Bxd5 {[%emt 0:02:54]} Nxd5 {[%emt 0:00:00]} 22. Rxd5 {[#]} (22. Rxg4 f5 23. Rd4 Re1+ 24. Kg2) 22... Bf3 {[%emt 0:00:52] Weighted Error Value: White=0.73/Black=0.09 (flawless)} 0-1